Cogmind - Beta 13 @@@ ROGUE MODE // 2024.03.30 @ 22:35:13 Player: SLUGGY Result: Destroyed by G-34 Mercenary with Small Laser Performance ------------- Evolutions (0) 0 Regions Visited (1) 200 Robots Destroyed (15) 75 Value Destroyed (249) 249 Prototype IDs (0) 0 Alien Tech Used (0) 0 Bonus (0) 0 TOTAL SCORE: 524 Bonus ------- None Cogmind --------- Core Integrity 0/250 Matter 75/300 Energy 74/100 System Corruption 0% Temperature Cool (18) Movement Core (100) Ox1 Location -10/Materials Parts ------- > --- POWER (1) -------- (None) > --- PROPULSION (2) --- (None) > --- UTILITY (2) ------ Small Storage Unit Signal Interpreter > --- WEAPON (2) ------- (None) > --- INVENTORY (8) ---- Improved Terrain Scanner Peak State ------------ > --- POWER ------------ Light Ion Engine > --- PROPULSION ------- Wheel Wheel > --- UTILITY ---------- Small Storage Unit Improved Terrain Scanner > --- WEAPON ----------- Assault Rifle Light Assault Rifle > --- INVENTORY -------- (None) [Rating: 9] Favorites ----------- Power Light Ion Engine Engine Light Ion Engine Propulsion Wheel Wheel Wheel Utility Small Storage Unit Device Improved Terrain Scanner Storage Small Storage Unit Processor Signal Interpreter Weapon Light Cannon Ballistic Gun Light Assault Rifle Ballistic Cannon Light Cannon Launcher Grenade Launcher Special Weapon Mining Laser Special Melee Weapon Datajack Build | -11 -10 ------- Run | Yrd Mat Slots Evolved . | . . Power . | . . Propulsion . | . . Utility . | . . Weapon . | . . Parts Attached 17 | 8 9 Power 1 | 1 . Engine 1 | 1 . Core . | . . Reactor . | . . Propulsion 2 | 2 . Treads . | . . Leg . | . . Wheel 2 | 2 . Hover . | . . Flight . | . . Utility 3 | 2 1 Device 1 | 1 . Storage 1 | 1 . Processor 1 | . 1 Hackware . | . . Protection . | . . Artifact . | . . Weapon 11 | 3 8 Energy Gun . | . . Energy Cannon . | . . Ballistic Gun 2 | 2 . Ballistic Cannon 3 | . 3 Launcher 1 | . 1 Special Weapon 4 | 1 3 Impact Weapon . | . . Slashing Weapon . | . . Piercing Weapon . | . . Special Melee Weapon 1 | . 1 Unidentified Prototypes . | . . Parts Lost 9 | . 9 Power 1 | . 1 Propulsion 2 | . 2 Utility . | . . Weapon 6 | . 6 Highest Loss Streak 5 | . 5 To Critical Strikes . | . . Average Slot Usage (%) 78 | . 78 Engine 8 | . 8 Wheel 15 | . 15 Storage 14 | . 14 Processor 13 | . 13 Ballistic Cannon 10 | . 10 Launcher 7 | . 7 Special Weapon 6 | . 6 Special Melee Weapon 1 | . 1 Naked Turns . | . . Heaviest Build 12 | 12 12 Greatest Support 20 | 20 20 Greatest Overweight (x) 3 | . 3 Average Overweight (x) . | . . Largest Inventory Capacity 8 | 8 8 Average Capacity 7 | 7 8 Most Carried 6 | 2 6 Average Carried 2 | . 2 Final Capacity 8 | 8 8 Final Carried 1 | . 1 Class Distribution -------------------- 100% | Mutant Dominant Class ---------------- Mutant | -10/Materials Resources | -11 -10 ----------- Run | Yrd Mat Matter Collected 437 | 324 113 Remotely . | . . Salvage Created 309 | 145 164 Parts 23 | 9 14 Haulers Intercepted 1 | . 1 Recyclers Shooed 4 | . 4 Parts Field Recycled . | . . Retrieved Matter . | . . Parts Self-Destructed . | . . Prevented . | . . Kills | -11 -10 ------- Run | Yrd Mat Combat Hostiles Destroyed 5 | . 5 Cannons 2 | . 2 AOE 3 | . 3 Classes Destroyed 6 | 2 4 Builder 3 | . 3 Tunneler 3 | 3 . Hauler 1 | . 1 Recycler 2 | 1 1 Operator 1 | . 1 Grunt 5 | . 5 Best Kill Streak 4 | 4 4 Combat Bots Only 2 | . 2 Max Kills in Single Turn 2 | 2 1 Gunslinging . | . . Exploded 1 | . 1 Melee . | . . Uniques/NPCs Destroyed . | . . Combat | -11 -10 -------- Run | Yrd Mat Hostile Shots Fired 110 | . 110 Missed 47 | . 47 Damage Taken 806 | . 806 Core 250 | . 250 Absorbed by Shields . | . . Core Remaining (%) 100 | 100 . Volleys Fired 54 | 11 43 Largest 2 | 2 2 Hottest 100 | 40 100 Shots Fired 76 | 22 54 Gun 22 | 22 . Cannon 23 | . 23 Launcher 21 | . 21 Special 10 | . 10 Kinetic 45 | 22 23 Thermal 10 | . 10 Explosive 21 | . 21 Electromagnetic . | . . Robot Hit Streak 12 | 4 12 Robot Miss Streak 3 | 1 3 Penetration Max . | . . Secondary Targets . | . . Shots Hit Robots 51 | 13 38 Core Hits 26 | 5 21 Critical Kills . | . . Critical Parts Destroyed . | . . Critical Strikes 1 | . 1 Blast 1 | . 1 Melee Attacks 2 | . 2 Impact . | . . Slashing . | . . Piercing . | . . Sneak Attacks 2 | . 2 Combat Hostiles . | . . Follow-up Attacks . | . . Damage Inflicted 1356 | 151 1205 Guns 151 | 151 . Cannons 296 | . 296 Explosions 813 | . 813 Melee . | . . Ramming . | . . Kinetic 447 | 151 296 Thermal 96 | . 96 Explosive 813 | . 813 Electromagnetic . | . . Impact . | . . Slashing . | . . Piercing . | . . Highest Corruption . | . . Average Corruption . | . . Corruption Purged . | . . Corruption Blocked . | . . Overload Shots . | . . Overflow Damage 39 | . 39 Projectiles 5 | . 5 Explosions 34 | . 34 Melee . | . . Knockbacks 5 | . 5 Impact . | . . Kinetic 5 | . 5 Secondary . | . . Self-Inflicted Damage 51 | . 51 Shots 2 | . 2 Rammed 3 | . 3 Targets Rammed 3 | . 3 Kicked . | . . Crushed . | . . Highest Temperature 56 | . 56 Average Temperature 14 | . 14 Received Heat Transfer 387 | . 387 Siege Activations . | . . Robots Corrupted . | . . Combat Hostiles . | . . Parts Fried . | . . Impact Corruptions . | . . Robots Melted . | . . Combat Hostiles . | . . Parts Melted . | . . Heat Transferred 200 | . 200 Parts Sabotaged . | . . Parts Stolen . | . . Parts Stripped . | . . Power Chain Reactions . | . . Alert | -11 -10 ------- Run | Yrd Mat Peak Influence 200 | 20 200 Initial 13 | . 13 Average 51 | 9 58 Maximum Alert Level 1 | . 1 Low Security (%) 98 | 100 98 Level 1 1 | . 1 Level 2 . | . . Level 3 . | . . Level 4 . | . . Level 5 . | . . High Security . | . . Max Security . | . . Squads Dispatched 4 | . 4 Investigation 4 | . 4 Extermination . | . . Reinforcement . | . . Assault . | . . Garrison . | . . Intercept . | . . Searches Triggered . | . . Construction Impeded . | . . Haulers Reinforced . | . . Active Scanning Responses . | . . Cargo Convoy Interrupts . | . . Stealth | -11 -10 --------- Run | Yrd Mat Distress Signals . | . . Communications Jammed . | . . Distress Signals . | . . Times Spotted 11 | . 11 Peak Tracking Total 4 | . 4 Tactical Retreats . | . . Traps | -11 -10 ------- Run | Yrd Mat Traps Triggered 2 | . 2 Indirectly . | . . Trap Hack Attempts . | . . Triggered . | . . Disarmed . | . . Reprogrammed . | . . Reused . | . . Traps Extracted . | . . Installed . | . . Triggered . | . . Machines | -11 -10 ---------- Run | Yrd Mat Machines Disabled . | . . Max in Single Turn . | . . Machines Repaired . | . . Machines Dismantled . | . . Machines Sabotaged . | . . Overloaded Fab Kills . | . . Hacking | -11 -10 --------- Run | Yrd Mat Machines Accessed 4 | . 4 Terminals 3 | . 3 Fabricators . | . . Repair Stations . | . . Recycling Units 1 | . 1 Scanalyzers . | . . Garrison Access . | . . Total Hacks 13 | . 13 Successful 6 | . 6 Failed 7 | . 7 Catastrophic 2 | . 2 Database Lockouts . | . . Manual . | . . Terminals 10 | . 10 Fabricators . | . . Repair Stations . | . . Recycling Units 3 | . 3 Scanalyzers . | . . Garrison Access . | . . Terminal Hacks 4 | . 4 Record 2 | . 2 Dispatch Records 1 | . 1 Registered Components 1 | . 1 Fabricator Hacks . | . . Repair Station Hacks . | . . Recycling Unit Hacks 2 | . 2 Recycle Component 2 | . 2 Scanalyzer . | . . Garrison Access Hacks . | . . Unauthorized Hacks . | . . Terminals . | . . Fabricators . | . . Repair Stations . | . . Recycling Units . | . . Scanalyzers . | . . Garrison Access . | . . Data Cores Recovered 1 | . 1 Used . | . . Hacking Detections 4 | . 4 Full Trace Events 3 | . 3 Feedback Events . | . . Feedback Blocked . | . . Robot Schematics Acquired . | . . Robots Built . | . . Authchips . | . . Time . | . . Total Robot Build Rating . | . . Part Schematics Acquired . | . . Parts Built . | . . Authchips . | . . Time . | . . Total Part Build Rating . | . . Parts Repaired . | . . Time . | . . Parts Recycled 2 | . 2 Recycled Matter . | . . Retrieved Matter . | . . Retrieved Components . | . . Parts Scanalyzed . | . . Part Schematics Acquired . | . . Parts Damaged . | . . Bothacking | -11 -10 ------------ Run | Yrd Mat Used RIF Installer . | . . Robots Hacked 1 | . 1 Non-combat 1 | . 1 Combat . | . . Robot Hacks Applied 1 | . 1 no_distress 1 | . 1 Relay Couplers Released . | . . Fabnet Peak Effective % . | . . Robots Rewired . | . . Allies Hacked . | . . Hacks Repelled . | . . Allies | -11 -10 -------- Run | Yrd Mat Total Allies . | . . Largest Group . | . . Highest-Rated Group . | . . Highest-Rated Ally . | . . Total Orders . | . . Ally Attacks . | . . Total Damage . | . . Kills . | . . Allies Corrupted . | . . Allies Melted . | . . Intel | -11 -10 ------- Run | Yrd Mat Robot Analysis Total . | . . Derelict Logs Recovered . | . . Drone Launches . | . . Drone Recoveries . | . . Exploration | -11 -10 ------------- Run | Yrd Mat Turns Passed 647 | 91 556 Spaces Moved 429 | 59 370 Core 122 | 10 112 Treads . | . . Legs . | . . Wheels 307 | 49 258 Hover . | . . Flight . | . . Fastest Speed 50 | 50 80 Average Speed 105 | 74 110 Slowest Speed 200 | 80 200 Overloaded Moves . | . . Propulsion Burnouts . | . . Robots Hopped . | . . Cave-ins Triggered . | . . Exploration Rate (%) 20 | 3 37 Regions Visited 1 Branch Regions . Pre-discovered Areas . | . . Known Exits Taken . | . . Unknown Exits Taken 1 | 1 . Scrap Searched . | . . Spaces Dug . | . . Terrain Destroyed 45 | . 45 Melee . | . . Projectile 1 | . 1 AOE 44 | . 44 Terrain Rammed . | . . Walls Destroyed . | . . Machines Disabled . | . . Actions | -11 -10 --------- Run | Yrd Mat Total 528 | 86 442 Wait . | . . Move 428 | 58 370 Hop . | . . Pick Up 19 | 8 11 Fast Attach . | . . Attach 15 | 8 7 Detach . | . . Swap 2 | . 2 Drop 5 | 1 4 Fire 54 | 11 43 Melee 2 | . 2 Ram 3 | . 3 Kick . | . . Crush . | . . Escape Stasis . | . . Rewire . | . . Trap . | . . Miscellaneous . | . . Route ------- -11/Scrapyard -10/Materials (discovered 1 exit: [*Mat]) History --------- Turn | Location | Event 3 | -11/Scrapyard | Discovered new exit (range 16) 92 | -11/Scrapyard | Entered Materials 316 | -10/Materials | Build established: Mutant 441 | -10/Materials | Lost 5 parts (1p2n2w) 544 | -10/Materials | Discovered new exit (range 10) 553 | -10/Materials | Core integrity fell below 50% 616 | -10/Materials | Core integrity fell below 20% 648 | -10/Materials | Destroyed by G-34 Mercenary with Small Laser Last Messages --------------- ALERT: Alarm triggered, dispatching investigation squad. G-34 Mercenary knocked back. Destroyed Heat Sink. [Achievement: Oops] Acquired Welding Torch. R-06 Scavenger collects Ion Engine. Slammed into R-06 Scavenger. Lgt. Cannon destroyed. U-05 Engineer builds a Wall. Acquired 24 matter. U-05 Engineer lays Concrete. Acquired 33 matter. U-05 Engineer lays Concrete. Acquired 21 matter. U-05 Engineer lays Concrete. Lgt. Cannon destroyed. U-05 Engineer lays Concrete. Welding Torch destroyed. U-05 Engineer builds a Wall. Map ----- +----------------------------------------------------+ | ?????????????????????????????????????????????????? | | ?????????????????????????????????????????????????? | | ?????????????????????????????????????????????????? | | ?????????????????????????????????????????????????? | | ????????#######??????????????????????????????????? | | ????????# #?????????????????#+###????????????? | | ????????# ????????????????? #????????????? | | ????????# ?????????????????? #???+#???????? | | ????????? ?????????????????? #??? #???????? | | ????????? ??????????????????# #??? #? ?????? | | ?????????# #??????????????????# #### # ??????? | | ?????????# #??????????????????# # ??????? | | #????????# #??????????######### +???????? | | +????????# #??????????# ## #???????? | | #???????## ##?????????# ## #???????? | | #???????# #?????????# ## #???????? | | #???????# #?????????# ## !! #???????? | | ######### ########### "T" ##% #???????? | | # ## + ## #??###### | | # """ ## #####+## k ##?# | | + """ ####### ### # # | | # """ + | | # #################g % ### | | # #???????????????# gg ^ ## * | | ####/###???????????????# ^ # ##### ## | | # #???????????????# @ # ###???# ## | | # """ #??????????????## # #????# | | + """ #??????????###### # ##?######## | | # """ #??????????# # %""#?? #??? | | # #??????????## ### Y"#?# #??? | | # +?????? ""#?# ! #### | | ########?????# ## #u ###?# ## | | ?????????????# # """ #???# ## " | | ?????????????# # ## """ #???#"" ## " | | ?????????????# ##?# """ #???#"Y ## " | | ?????????????+ ????# #???#"" ## | | ?????????????# ????#" ^ #???? ## | | ?????????????# ######?????#T #######+##### | | ?????????????#????????????#" ! | | ??????????????????????????# ! | | ??????????????????????????# ! | | ??????????????????????????######################## | | ?????????????????????????????????????????????????? | | ????????????????????????????????????#???????#????? | | ?????????????????????????????????????????????????? | | ?????????????????????????????????????????????????? | | | | | | | | | +----------------------------------------------------+ Best States ------------- Heat Dissipation 25 Energy Generation 10 Energy Capacity 125 Matter Stores 300 Matter Capacity 300 Sight Range 16 Terrain Scan Range 16 Terrain Scan Density 10 Evasion (%) 44 Item Schematics ----------------- None Robot Schematics ------------------ None Fabricated ------------ Nothing Alien Tech Used ----------------- None Achievements -------------- Oops Challenges ------------ None Game ------ Seed LaserLayeredPod Manual? 0 Play Time 00:11:51 Cumulative 1.0 hours Start 2024.03.30 @ 22:22:49 End 2024.03.30 @ 22:35:13 Sessions 1 Manual Loads 0 Difficulty Rogue Special Mode None Game No. 5 Rogue 5 Adventurer 0 Explorer 0 Win Type - Total 0 Types 0/0/0/0/0/0/0/0/0 Lore% 0 Gallery% 4 Achievement% 5 Wizard Run 0 Options --------- Layout 1 ASCII 0 Keyboard 0 Movement Mouse Keybinds 0 Fullscreen 1 Font 32/SmallcapsGlow Map View 50x35 Zoom Use 0% Tactical HUD 0 Map Filters NONE Filters NONE Steam 1 RUN: 6c45021a-2e6b-4df2-987a-ba9e7a1be272